bitfinex-derivatives/quotes_SOLF0:USTF0_20241015
["timestamp","ask_amount","ask_price","bid_price","bid_amount"]
[1728956175953,4.86,157.32,157.27,3.1795]
[1728956176557,3.179,157.31,157.27,3.1795]
[1728956180757,4.86,157.32,157.27,3.1795]
[1728956180960,3.1791,157.3,157.27,3.1795]
[1728956183966,15.27,157.33,157.25,0.12502]
[1728956184165,8.0388,157.32,157.29,3.1793]
[1728956184463,4.86,157.32,157.25,0.12502]
[1728956185559,3.1789,157.31,157.28,3.1794]
[1728956187161,8.0387,157.32,157.25,0.12502]
[1728956187866,8.0387,157.32,157.28,3.1793]
[1728956188068,17.901,157.35,157.25,0.12502]
[1728956188362,4.86,157.34,157.27,15.27]
[1728956188769,8.0384,157.34,157.31,3.1788]
[1728956189265,3.1785,157.33,157.31,3.1788]
[1728956190967,3.1785,157.33,157.27,15.27]
[1728956191173,3.1785,157.33,157.3,3.179]
[1728956192171,4.86,157.34,157.27,15.27]
[1728956192664,15.27,157.38,157.29,15.27]
[1728956192865,4.86,157.36,157.29,15.27]
[1728956193065,15.27,157.38,157.29,15.27]
[1728956193259,4.98502,157.37,157.3,1.3872]
[1728956193467,4.98502,157.37,157.31,15.27]
[1728956193671,3.178,157.36,157.33,3.1784]
[1728956193964,15.27,157.36,157.3,6.2472]
[1728956194366,3.1783,157.34,157.32,3.1786]
[1728956195769,8.16272,157.37,157.34,3.1781]
[1728956196271,4.98502,157.37,157.3,6.2472]
[1728956196472,3.1779,157.36,157.33,3.1783]
[1728956197366,3.1779,157.36,157.3,6.2472]
[1728956197571,8.16272,157.37,157.34,3.1781]
[1728956197773,0.12502,157.37,157.3,21.5172]
[1728956198470,3.30272,157.37,157.34,3.1782]
[1728956199671,3.1782,157.35,157.32,3.1786]
[1728956200081,3.1782,157.35,157.3,1.3872]
[1728956200579,3.1782,157.35,157.31,3.1788]
[1728956200777,3.1782,157.35,157.3,1.3872]
[1728956201878,3.1782,157.35,157.32,3.1785]
[1728956202272,3.1782,157.35,157.3,1.3872]
[1728956203780,3.1782,157.35,157.32,3.1786]
[1728956203781,12.9482,157.35,157.32,3.1786]
[1728956208381,3.1782,157.35,157.33,3.1784]
[1728956210774,9.77,157.34,157.32,3.1786]
[1728956213375,9.77,157.34,157.3,1.3872]
[1728956213575,9.77,157.31,157.17,225.0]
[1728956213778,9.77,157.28,157.25,0.12502]
[1728956214084,9.77,157.26,157.25,0.12502]
[1728956215179,12.9499,157.26,157.25,0.12502]
[1728956215579,9.77,157.26,157.19,1.38792]
[1728956215780,3.1805,157.23,157.19,3.30612]
[1728956216683,18.4603,157.24,157.2,3.181]
[1728956216884,15.28,157.24,157.19,0.12502]
[1728956217183,3.1808,157.22,157.19,0.12502]
[1728956218083,3.9962,157.26,157.19,0.12502]
[1728956218278,3.1804,157.24,157.19,0.12502]
[1728956218484,3.1804,157.24,157.2,3.1811]
[1728956218688,15.28,157.25,157.19,0.12502]
[1728956218982,4.86,157.26,157.19,0.12502]
[1728956219185,3.1797,157.27,157.19,0.12502]
[1728956219481,4.86,157.27,157.19,0.12502]
[1728956219687,4.86,157.29,157.2,15.28]
[1728956219882,8.0393,157.29,157.2,15.28]
[1728956220487,8.0393,157.29,157.24,3.1801]
[1728956221375,20.14,157.29,157.2,15.28]
[1728956221584,3.1801,157.25,157.19,0.12502]
[1728956221781,15.28,157.27,157.19,0.12502]
[1728956222381,3.1799,157.26,157.23,3.1805]
[1728956222584,20.14,157.29,157.19,15.40502]
[1728956222784,4.84,157.29,157.21,15.28]
[1728956222985,8.0194,157.29,157.24,3.1801]
[1728956223186,8.0194,157.29,157.21,15.28]
[1728956223790,8.0194,157.29,157.25,3.1799]
[1728956224980,3.1799,157.27,157.23,3.1804]
[1728956225191,15.28,157.27,157.19,0.12502]
[1728956225381,15.28,157.25,157.19,0.12502]
[1728956225594,1.3082,157.24,157.19,0.12502]
[1728956225787,3.1806,157.23,157.19,0.12502]
[1728956226086,1.3082,157.24,157.19,0.12502]
[1728956226691,1.3082,157.24,157.21,3.1808]
[1728956226692,3.1803,157.24,157.21,3.1808]
[1728956227188,1.3082,157.29,157.19,15.40502]
[1728956227391,4.84,157.28,157.22,15.28]
[1728956227987,4.84,157.28,157.2,20.12]
[1728956228390,3.1801,157.25,157.22,3.1805]
[1728956228795,4.84,157.28,157.2,20.12]
[1728956229091,3.18,157.26,157.23,3.1805]
[1728956229293,4.84,157.28,157.23,3.1805]
[1728956229495,3.1798,157.27,157.23,3.1805]
[1728956229998,3.1798,157.27,157.24,3.1801]
[1728956230394,8.0195,157.28,157.25,3.18]
[1728956230593,1.365,157.3,157.22,15.28]
[1728956230798,4.86,157.29,157.24,15.28]
[1728956231697,4.98502,157.31,157.24,15.28]
[1728956231996,0.12502,157.31,157.26,15.28]
[1728956232389,0.12502,157.31,157.3,3.1791]
[1728956233290,0.12502,157.31,157.28,3.1793]
[1728956233291,3.30392,157.31,157.28,3.1793]
[1728956233887,0.12502,157.31,157.28,3.1793]
[1728956234294,0.12502,157.31,157.29,3.1792]
[1728956236201,0.12502,157.31,157.26,15.28]
[1728956236496,0.12502,157.31,157.3,3.1791]
[1728956245004,0.12502,157.37,157.3,15.28]
[1728956245202,0.12502,157.37,157.3,16.5868]
[1728956245706,0.12502,157.37,157.35,3.1779]
[1728956247805,0.12502,157.37,157.34,15.28]
[1728956248007,0.12502,157.37,157.36,18.4579]
[1728956248703,0.12502,157.37,157.36,23.2979]
[1728956254308,0.12502,157.37,157.36,3.1779]
[1728956254519,0.12502,157.37,157.35,3.1779]
[1728956255319,0.12502,157.37,157.33,15.28]
[1728956255511,3.30272,157.37,157.34,3.1782]
[1728956256018,0.12502,157.37,157.34,3.1782]
[1728956256218,0.12502,157.37,157.35,3.178]
[1728956256516,0.12502,157.37,157.33,15.28]
[1728956257413,0.12502,157.37,157.35,3.1779]
[1728956259715,0.12502,157.37,157.32,3.1785]
[1728956260212,0.12502,157.37,157.31,20.12]
[1728956260413,3.1779,157.36,157.33,3.1784]
[1728956260715,3.1779,157.36,157.31,20.12]
[1728956262417,3.1779,157.36,157.33,3.1783]
[1728956267729,3.30272,157.37,157.34,3.1782]
[1728956268233,0.12502,157.37,157.31,20.12]
[1728956269128,3.30272,157.37,157.31,20.12]
[1728956271435,3.30272,157.37,157.34,3.1782]
[1728956272640,3.1779,157.36,157.33,3.1783]
[1728956272839,0.12502,157.37,157.31,20.12]
[1728956273534,3.30272,157.37,157.33,3.1783]
[1728956273734,3.30272,157.37,157.31,20.12]
[1728956274640,3.30272,157.37,157.34,3.1782]
[1728956276640,0.12502,157.37,157.36,3.1779]
[1728956277044,3.1767,157.42,157.35,20.12]
[1728956277236,3.30162,157.43,157.39,3.1772]
[1728956277838,0.12502,157.43,157.4,15.28]
[1728956278038,0.12502,157.43,157.41,3.1768]
[1728956278645,0.12502,157.43,157.42,3.1766]
[1728956281546,0.12502,157.43,157.42,18.4566]
[1728956281748,3.30032,157.49,157.46,3.1758]
[1728956282462,3.30032,157.49,157.45,3.176]
[1728956282955,3.30032,157.49,157.46,3.1758]
[1728956283351,3.30032,157.49,157.44,15.28]
[1728956283352,0.12502,157.49,157.44,15.28]
[1728956283548,0.12502,157.49,157.46,3.1758]
[1728956283952,3.30032,157.49,157.46,3.1758]
[1728956284859,3.1757,157.47,157.44,3.1762]
[1728956285055,0.12502,157.49,157.4,15.28]
[1728956285351,3.1762,157.45,157.4,20.12]
[1728956285555,3.1762,157.45,157.41,3.1768]
[1728956285949,4.84,157.47,157.38,15.28]
[1728956286256,4.84,157.47,157.39,4.84]
[1728956286855,3.1763,157.44,157.41,3.1768]
[1728956287952,3.1766,157.42,157.39,3.1772]
[1728956288654,3.1768,157.41,157.38,23.2974]
[1728956289052,3.10096457,157.44,157.36,16.5739]
[1728956289251,2.6153,157.43,157.36,20.12]
[1728956290558,3.177,157.41,157.38,3.1774]
[1728956292655,2.6153,157.43,157.36,20.12]
[1728956293160,7.4553,157.43,157.36,15.28]
[1728956293346,15.28,157.42,157.33,16.5595]
[1728956293551,3.1775,157.38,157.34,3.1782]
[1728956298354,15.28,157.42,157.33,15.28]
[1728956298557,3.1773,157.39,157.36,3.1778]
[1728956299861,3.1773,157.39,157.31,4.96502]
[1728956299862,4.84,157.41,157.37,9.89502]
[1728956300056,3.1775,157.38,157.37,9.89502]
[1728956302858,4.84,157.41,157.38,3.1774]
[1728956302859,3.1769,157.41,157.38,3.1774]
[1728956303168,17.2253,157.43,157.39,9.77]
[1728956303354,3.177,157.4,157.39,9.77]
[1728956303760,2.6153,157.43,157.39,9.77]
[1728956304066,3.1768,157.42,157.4,9.77]
[1728956304662,3.1768,157.41,157.4,9.77]
[1728956305366,3.1766,157.42,157.4,9.77]
[1728956308368,9.77,157.41,157.37,0.12502]
[1728956309164,6.1523,157.44,157.37,0.12502]
[1728956309165,3.1774,157.39,157.37,0.12502]
[1728956309362,6.1523,157.44,157.37,0.12502]
[1728956309678,9.77,157.42,157.37,0.12502]
[1728956310267,9.77,157.43,157.38,9.77]
[1728956310771,3.1769,157.41,157.38,12.9473]
[1728956311971,3.1772,157.4,157.38,9.77]
[1728956312474,9.77,157.43,157.37,0.12502]
[1728956312970,6.1523,157.44,157.37,0.12502]
[1728956312971,3.1774,157.39,157.37,0.12502]
[1728956313368,9.77,157.41,157.37,0.12502]
[1728956313569,3.1775,157.38,157.37,0.12502]
[1728956314870,3.1774,157.39,157.37,0.12502]
[1728956315767,4.84,157.4,157.37,3.30262]
[1728956316174,4.84,157.4,157.37,13.07262]
[1728956317381,3.1773,157.39,157.37,13.07262]
[1728956317582,1.3085,157.42,157.39,3.1772]
[1728956317885,3.1764,157.44,157.41,9.77]
[1728956318085,4.84,157.46,157.42,9.77]
[1728956319382,3.1765,157.43,157.42,9.77]
[1728956319883,3.1765,157.43,157.4,3.177]
[1728956326391,3.1763,157.44,157.4,3.177]
[1728956326597,4.84,157.45,157.4,3.177]
[1728956327484,3.1766,157.43,157.4,3.177]
[1728956330393,4.84,157.45,157.39,15.25]
[1728956330586,3.1764,157.44,157.42,3.1766]
[1728956330787,3.1764,157.44,157.39,15.25]
[1728956331089,3.1764,157.44,157.41,3.1768]
[1728956331797,3.1775,157.38,157.37,0.12502]
[1728956340290,1.2585,157.43,157.37,0.12502]
[1728956340490,1.2585,157.43,157.37,13.07252]
[1728956340491,14.61,157.42,157.37,13.07252]
[1728956341493,3.1772,157.4,157.37,13.07252]
[1728956342089,3.1775,157.38,157.37,0.12502]
[1728956342288,12.9475,157.38,157.37,0.12502]
[1728956342489,14.61,157.38,157.31,0.12502]
[1728956342692,9.77,157.34,157.31,0.12502]
[1728956342897,4.84,157.38,157.31,0.12502]
[1728956342898,9.77,157.33,157.31,0.12502]
[1728956343289,3.1787,157.32,157.31,0.12502]
[1728956343700,4.84,157.34,157.31,9.89502]
[1728956344691,3.1785,157.33,157.31,9.89502]
[1728956345595,4.84,157.34,157.31,9.89502]
[1728956345800,8.0183,157.34,157.31,9.89502]
[1728956346797,3.1785,157.33,157.31,9.89502]
[1728956349501,4.84,157.34,157.31,9.89502]
[1728956349699,1.2658,157.37,157.33,9.77]
[1728956349905,4.84,157.37,157.33,9.77]
[1728956350097,4.84,157.38,157.35,9.77]
[1728956350298,3.1777,157.37,157.35,9.77]
[1728956351311,3.1777,157.37,157.34,9.77]
[1728956352205,3.1779,157.36,157.33,3.1783]
[1728956353708,3.1779,157.36,157.31,3.30372]
[1728956353709,3.1783,157.34,157.31,3.30372]
[1728956359204,14.61,157.36,157.31,0.12502]
[1728956360507,3.1784,157.34,157.31,0.12502]
[1728956361208,14.61,157.36,157.31,0.12502]
[1728956361409,3.1787,157.32,157.31,0.12502]
[1728956361611,14.61,157.32,157.15,6.3642]
[1728956361911,9.77,157.29,157.25,9.89502]
[1728956362107,3.1796,157.28,157.25,9.89502]
[1728956363711,3.1796,157.28,157.25,13.07492]
[1728956363916,4.84,157.32,157.26,9.77]
[1728956364214,4.84,157.32,157.25,0.12502]
[1728956364215,9.77,157.29,157.25,0.12502]
[1728956365510,3.1797,157.27,157.25,0.12502]
[1728956366411,3.1794,157.29,157.26,12.9499]
[1728956367920,3.1792,157.3,157.26,9.77]
[1728956368121,9.77,157.31,157.26,9.77]
[1728956369021,3.1795,157.28,157.26,9.77]
[1728956369217,9.77,157.3,157.25,9.89502]
[1728956370121,4.84,157.32,157.25,0.12502]
[1728956370122,9.77,157.26,157.25,0.12502]
[1728956370516,12.9499,157.26,157.25,0.12502]
[1728956370919,9.77,157.26,157.19,9.89502]
[1728956371120,3.1805,157.23,157.19,9.89502]
[1728956371624,3.1806,157.23,157.19,9.89502]
[1728956371825,3.1806,157.23,157.19,0.12502]
[1728956372022,3.1806,157.23,157.19,3.30612]
[1728956378023,4.84,157.22,157.19,0.12502]
[1728956378226,3.1811,157.2,157.19,0.12502]
[1728956379020,6.35212549,157.2,157.19,0.12502]
[1728956382431,8.0211,157.2,157.19,0.12502]
[1728956390527,4.84,157.2,157.19,0.12502]
[1728956392933,12.961,157.21,157.19,0.12502]
[1728956393234,4.84,157.2,157.19,0.12502]
[1728956395934,4.84,157.2,157.19,3.30632]
[1728956397231,4.84,157.2,157.19,0.12502]
[1728956397533,8.0211,157.2,157.19,0.12502]
[1728956398034,4.84,157.2,157.19,0.12502]
[1728956399035,8.0211,157.2,157.19,0.12502]
[1728956399233,20.95528804,157.2,157.19,0.12502]
[1728956399437,17.8011,157.2,157.19,0.12502]
[1728956405734,3.1808,157.22,157.19,3.30632]
[1728956405938,4.84,157.22,157.19,0.12502]
[1728956406536,8.0208,157.22,157.19,3.30622]
[1728956407337,4.84,157.22,157.19,0.12502]
[1728956407543,9.78,157.21,157.19,0.12502]
[1728956407738,9.78,157.2,157.19,0.12502]
[1728956408140,16.09364696,157.2,157.19,0.12502]
[1728956408442,9.78,157.17,157.13,0.12502]
[1728956408738,14.62,157.17,157.13,0.12502]
[1728956409643,9.78,157.15,157.13,0.12502]
[1728956410146,12.9622,157.15,157.13,0.12502]
[1728956410341,9.78,157.15,157.13,0.12502]
[1728956411639,3.1823,157.14,157.13,0.12502]
[1728956414341,12.9623,157.14,157.13,0.12502]
[1728956416747,9.78,157.14,157.06,1.3566]
[1728956417045,9.78,157.11,157.06,11.1366]
[1728956417255,12.963,157.11,157.06,11.1366]
[1728956417549,9.78,157.11,157.07,9.90502]
[1728956418439,3.1828,157.12,157.08,3.1835]
[1728956418641,12.9628,157.12,157.08,3.1835]
[1728956419742,1.2991,157.18,157.09,9.78]
[1728956419948,9.78,157.14,157.1,3.1831]
[1728956420163,4.84,157.13,157.1,3.1831]
[1728956421547,8.0225,157.13,157.1,3.1831]
[1728956423152,9.78,157.11,157.08,3.1834]
[1728956425259,9.78,157.11,157.07,0.12502]
[1728956425460,12.9631,157.1,157.07,3.30872]
[1728956425852,9.78,157.1,157.07,0.12502]
[1728956426156,8.0234,157.09,157.07,0.12502]
[1728956426350,4.84,157.09,157.07,0.12502]
[1728956426550,9.78,157.12,157.07,9.90502]
[1728956426757,4.84,157.11,157.07,9.90502]
[1728956427058,4.84,157.11,157.08,3.1833]
[1728956427758,14.62,157.12,157.07,0.12502]
[1728956427958,9.78,157.1,157.07,0.12502]
[1728956428550,9.78,157.08,157.01,0.12502]
[1728956428750,4.96502,157.07,156.91,2.6888]
[1728956428958,9.78,156.99,156.91,2.6888]
[1728956429156,9.78,156.99,156.94,9.78]
[1728956429449,3.1857,156.98,156.94,9.78]
[1728956429658,0.12502,157.07,156.95,9.90502]
[1728956429853,3.1846,157.03,156.97,12.9656]
[1728956430055,14.62,157.02,156.97,12.9656]
[1728956430257,14.62,157.01,156.95,0.12502]
[1728956430462,12.9655,156.99,156.95,0.12502]
[1728956430651,4.84,156.98,156.95,0.12502]
[1728956431259,8.0257,156.98,156.95,0.12502]
[1728956432557,3.1857,156.98,156.95,0.12502]
[1728956432754,8.0457,156.98,156.95,0.12502]
[1728956432955,4.86,156.98,156.95,0.12502]
[1728956433154,3.1859,156.97,156.95,0.12502]
[1728956433959,4.86,156.98,156.95,0.12502]
[1728956435555,8.0457,156.98,156.95,0.12502]
[1728956435956,4.86,156.98,156.95,0.12502]
[1728956436157,3.1859,156.97,156.95,0.12502]
[1728956439470,3.186,156.96,156.95,0.12502]
[1728956446571,3.1865,156.94,156.89,3.31222]
[1728956447074,8.0465,156.94,156.9,3.187]
[1728956447665,8.0465,156.94,156.89,0.12502]
[1728956447666,4.86,156.94,156.91,3.187]
[1728956447878,8.0462,156.95,156.91,3.187]
[1728956448579,4.86,156.95,156.89,0.12502]
[1728956448878,4.86,156.95,156.84,0.12518]
[1728956448879,22.0,156.94,156.84,0.12518]
[1728956449067,3.187,156.91,156.84,0.12518]
[1728956449266,3.15814042,156.91,156.84,0.12518]
[1728956449472,7.4924,156.93,156.84,0.12518]
[1728956449473,15.3,156.89,156.84,0.12518]
[1728956449669,41.8924,156.93,156.84,0.12518]
[1728956449670,11.29569263,156.88,156.84,0.12518]
[1728956449971,15.3,156.88,156.84,0.12518]
[1728956450170,5.16,156.87,156.84,3.31348]
[1728956450371,5.16,156.87,156.8,1.0]
[1728956450372,15.3,156.85,156.8,1.0]
[1728956450870,18.46708963,156.85,156.8,1.0]
[1728956451278,15.3,156.81,156.8,1.0]
[1728956451473,15.3,156.85,156.8,1.0]
[1728956451674,5.16,156.82,156.8,1.0]
[1728956452079,5.16,156.83,156.8,1.0]
[1728956453074,3.1886,156.83,156.8,1.0]
[1728956453271,5.16,156.83,156.8,1.0]
[1728956453673,0.12502,156.89,156.8,1.0]
[1728956453979,5.16,156.88,156.8,1.0]
[1728956454366,8.3478,156.88,156.82,3.1887]
[1728956454568,0.12502,156.89,156.82,15.3]
[1728956454778,0.12502,156.89,156.85,3.188]
[1728956455173,3.36606118,156.89,156.82,15.3]
[1728956456073,3.1876,156.88,156.84,3.1884]
[1728956457274,3.1879,156.87,156.83,3.1885]
[1728956458183,3.1879,156.87,156.84,3.1883]
[1728956458683,3.1876,156.88,156.84,3.1882]
[1728956458882,3.1876,156.88,156.8,17.5642]
[1728956459586,3.1879,156.87,156.8,17.5642]
[1728956459976,0.12502,156.89,156.8,17.5642]
[1728956460173,0.12502,156.89,156.8,2.2642]
[1728956460475,15.3,156.88,156.8,2.2642]
[1728956460676,3.1885,156.84,156.8,5.4533]
[1728956460882,3.1885,156.84,156.8,2.2642]
[1728956461779,5.30502,156.89,156.82,15.3]
[1728956462778,0.12502,156.89,156.82,15.3]
[1728956463184,0.12502,156.89,156.85,3.1881]
[1728956463487,15.3,156.87,156.8,2.2642]
[1728956463789,3.1882,156.85,156.8,2.2642]
[1728956463989,20.60502,156.89,156.8,17.5642]
[1728956464182,20.60502,156.89,156.84,3.1883]
[1728956464183,3.1876,156.88,156.84,3.1883]
[1728956464894,20.60502,156.89,156.8,17.5642]
[1728956465092,5.30502,156.89,156.82,15.3]
[1728956465285,0.12502,156.89,156.82,15.3]
[1728956465583,3.31242,156.89,156.86,3.1879]
[1728956465788,0.12502,156.89,156.82,15.3]
[1728956465980,0.12502,156.89,156.86,3.1879]
[1728956466181,3.31252,156.89,156.82,15.3]
[1728956466385,0.12502,156.89,156.82,15.3]
[1728956466587,0.12502,156.89,156.81,5.18]
[1728956467394,3.1879,156.87,156.84,3.1883]
[1728956467890,3.1876,156.88,156.84,3.1883]
[1728956468488,0.12502,156.89,156.81,20.48]
[1728956468696,0.12502,156.89,156.87,3.1876]
[1728956473002,15.42502,156.89,156.8,17.5642]
[1728956473302,5.18,156.88,156.8,2.2642]
[1728956473505,15.3,156.87,156.82,3.1887]
[1728956474901,3.1882,156.85,156.82,3.1887]
[1728956476801,15.3,156.87,156.8,2.2642]
[1728956477001,3.1876,156.88,156.8,17.5642]
[1728956477605,0.12502,156.89,156.8,17.5642]
[1728956477803,3.31242,156.89,156.8,17.5642]
[1728956478008,0.12502,156.89,156.84,15.3]
[1728956478210,0.12502,156.89,156.87,3.1877]
[1728956478506,0.12502,156.89,156.85,1.3602]
[1728956478708,0.12502,156.89,156.88,3.1876]
[1728956483008,3.1865,156.94,156.91,3.187]
[1728956484811,5.32502,156.95,156.91,3.187]
[1728956485112,5.32502,156.95,156.87,5.2]
[1728956485306,5.32502,156.95,156.89,3.1873]
[1728956485512,3.1865,156.94,156.89,3.1873]
[1728956485708,5.32502,156.95,156.89,3.1873]
[1728956486713,3.1867,156.93,156.89,3.1873]
[1728956488510,3.1867,156.93,156.87,5.2]
[1728956488711,3.1867,156.93,156.9,3.1872]
[1728956490716,5.32502,156.95,156.87,5.2]
[1728956490914,3.1865,156.94,156.87,5.2]
[1728956491211,3.1865,156.94,156.88,15.3]
[1728956491412,3.1865,156.94,156.9,3.187]
[1728956491615,3.1865,156.94,156.88,15.3]
[1728956492215,3.1865,156.94,156.9,3.187]
[1728956495013,3.1865,156.94,156.91,3.187]
[1728956503929,12.9865,156.94,156.91,3.187]
[1728956504328,9.8,156.93,156.86,2.5507]
[1728956504629,12.9866,156.93,156.9,3.1871]
[1728956505528,12.9866,156.93,156.88,9.8]
[1728956505832,12.9866,156.93,156.91,3.187]
[1728956509632,12.9866,156.93,156.9,3.1871]
[1728956512235,8.51122,156.95,156.92,3.1866]
[1728956513441,3.1864,156.94,156.91,12.9869]
[1728956514533,0.12502,156.95,156.91,9.8]
[1728956515144,0.12502,157.01,156.94,9.8]
[1728956515338,0.12502,157.01,156.98,9.8]
[1728956515644,0.12502,157.01,156.99,3.1852]
[1728956518441,0.12502,157.01,156.97,9.8]
[1728956519142,9.92502,157.01,156.98,3.1854]
[1728956519441,9.8,156.99,156.93,16.1634]
[1728956520642,9.8,156.99,156.96,3.1859]
[1728956520643,3.1854,156.99,156.96,3.1859]
[1728956521445,3.1852,157.0,156.97,3.1857]
[1728956522844,9.8,157.0,156.93,6.3634]
[1728956523050,3.1855,156.99,156.95,9.8]
[1728956523438,3.1856,156.98,156.95,12.9861]
[1728956524242,9.8,156.99,156.9,1.3508]
[1728956524448,9.8,156.97,156.92,9.8]
[1728956524649,9.8,156.97,156.91,4.96]
[1728956524852,9.8,156.97,156.92,9.8]
[1728956526050,3.1861,156.96,156.93,3.1866]
[1728956527953,3.1861,156.96,156.92,3.1867]
[1728956528345,3.1861,156.96,156.91,4.96]
[1728956528748,19.2644,157.0,156.91,4.96]
[1728956529245,19.2644,157.0,156.9,1.3508]
[1728956529444,19.2644,157.0,156.91,15.31]
[1728956529840,3.1856,156.98,156.93,3.1864]
[1728956530046,3.1856,156.98,156.91,15.31]
[1728956530446,3.1856,156.98,156.94,3.1862]
[1728956530842,19.2644,157.0,156.94,3.1862]
[1728956531046,3.1858,156.97,156.94,3.1862]
[1728956531248,3.1858,156.97,156.93,3.1865]
[1728956532555,3.1858,156.97,156.94,3.1863]
[1728956534854,19.2644,157.0,156.91,15.31]
[1728956535049,19.2644,157.0,156.93,3.1864]
[1728956535243,19.2644,157.0,156.91,15.31]
[1728956535854,3.1857,156.98,156.93,3.1865]
[1728956536055,19.2644,157.0,156.93,3.1865]
[1728956536554,3.1859,156.97,156.93,3.1865]
[1728956538056,3.1859,156.97,156.93,3.1864]
[1728956538656,3.1859,156.97,156.91,15.31]
[1728956538855,3.1856,156.98,156.91,15.31]
[1728956539250,2.6837,157.0,156.96,3.1859]
[1728956539454,0.12502,157.01,156.95,15.31]
[1728956539952,0.12502,157.01,156.97,15.31]
[1728956540155,0.12502,157.07,156.99,15.31]
[1728956540460,0.12502,157.07,157.04,3.1843]
[1728956541148,19.1788,157.12,157.04,3.1843]
[1728956541149,3.1832,157.1,157.04,3.1843]
[1728956541349,15.31,157.22,157.12,3.1827]
[1728956541555,1.3038,157.2,157.12,15.31]
[1728956541758,1.3038,157.2,157.15,15.31]
[1728956542555,5.04,157.23,157.15,15.31]
[1728956542760,8.24165813,157.23,157.15,15.31]
[1728956542959,3.1809,157.22,157.15,18.4921]
[1728956543261,3.1809,157.22,157.1,8.17411395]
[1728956543262,15.31,157.22,157.13,15.31]
[1728956543459,3.1813,157.2,157.13,18.4923]
[1728956545262,3.1813,157.2,157.14,3.1823]
[1728956545462,0.12502,157.25,157.15,15.31]
[1728956545759,8.41285258,157.25,157.17,15.31]
[1728956545963,3.1807,157.22,157.16,18.4919]
[1728956546461,23.72285258,157.25,157.16,15.31]
[1728956546856,3.1811,157.21,157.16,15.31]
[1728956547054,23.72285258,157.25,157.16,15.31]
[1728956547365,3.1812,157.2,157.14,23.5322]
[1728956549961,8.41285258,157.25,157.15,15.31]
[1728956550167,8.41285258,157.25,157.15,20.35]
[1728956550660,3.1807,157.22,157.16,3.1819]
[1728956551262,3.1807,157.22,157.18,15.31]
[1728956552062,3.1805,157.23,157.18,18.4915]
[1728956553168,5.16502,157.25,157.18,18.4915]
[1728956553169,3.1807,157.22,157.18,18.4915]
[1728956554763,5.16502,157.25,157.15,20.35]
[1728956554963,3.30642,157.19,157.14,15.31]
[1728956555268,0.12502,157.19,157.14,15.31]
[1728956555664,0.12502,157.19,157.12,18.4925]
[1728956556169,3.1819,157.17,157.12,18.4925]
[1728956558863,0.12502,157.19,157.12,18.4925]
[1728956559063,3.1819,157.16,157.12,18.4925]
[1728956561671,3.1822,157.15,157.12,15.31]
[1728956563772,3.1825,157.13,157.09,20.35]
[1728956563973,18.44151489,157.18,157.09,20.35]